fUST/lending_fUST_20240814
["ID","MTS","AMOUNT","RATE_DAILY","PERIOD"]
[334800946,1723588238180,-600.74926304,9.999e-05,2]
[334800947,1723588238190,-320.08358525,9.999e-05,2]
[334800948,1723588238200,-279.60249481,9.999e-05,2]
[334800949,1723588238211,-413.41235077,0.0001,2]
[334800950,1723588238221,-500.0,0.00012986,2]
[334800951,1723588238232,-472.66978696,0.00013514,2]
[334800952,1723588238244,-3675.10671864,0.00013589,2]
[334800953,1723588238255,-596.0,0.000136,2]
[334800954,1723588238266,-200.0,0.00013673,2]
[334800955,1723588238276,-200.0,0.00013673,2]
[334800956,1723588238286,-112.32438143,0.00013673,2]
[334800976,1723588241493,-87.67561857,0.00013673,2]
[334800977,1723588241502,-200.0,0.00013673,2]
[334800978,1723588241512,-200.0,0.00013673,2]
[334800979,1723588241522,-662.66939243,0.00013688,2]
[334800980,1723588241617,-1991.31310145,0.00013688,2]
[334800981,1723588241627,-141903.25524547,0.00013688,2]
[334801016,1723588246045,-1201.29144853,0.00013688,2]
[334801034,1723589157645,301.25996446,9.999e-05,2]
[334801035,1723589193574,1413.68526537,9.999e-05,2]
[334801036,1723589198083,404.44105083,9.999e-05,2]
[334801037,1723589203038,2319.03289557,9.999e-05,2]
[334801038,1723589204725,1384.50193288,9.999e-05,2]
[334801039,1723589216704,1177.07889089,9.999e-05,2]
[334801129,1723589438320,-300.0,9.998e-05,2]
[334801130,1723589438330,-207.42304199,9.999e-05,2]
[334801131,1723589438339,-74.9944964,9.999e-05,2]
[334801132,1723589438350,-83.64075254,9.999e-05,2]
[334801133,1723589438360,-1798.38682928,9.999e-05,2]
[334801134,1723589438369,-1413.68526537,9.999e-05,2]
[334801135,1723589438378,-500.0,0.00012986,2]
[334801136,1723589438387,-5323.40502986,0.00013252,2]
[334801137,1723589438397,-3402.64471911,0.00013588,2]
[334801138,1723589438406,-2000.0,0.00013588,2]
[334801139,1723589438415,-719.94246759,0.00013598,2]
[334801140,1723589438427,-531.75289455,0.00013598,2]
[334801141,1723589438436,-200.0,0.00013673,2]
[334801142,1723589438445,-200.0,0.00013673,2]
[334801143,1723589438455,-200.0,0.00013673,2]
[334801144,1723589438464,-200.0,0.00013673,2]
[334801145,1723589438473,-16583.88915803,0.00013688,2]
[334801146,1723589438503,-648.29141447,0.00013688,2]
[334801147,1723589438511,-1326.99124694,0.00013688,2]
[334801148,1723589438521,-1670.74719108,0.00013688,2]
[334801149,1723589438530,-8095.73039797,0.00013688,2]
[334801154,1723589440247,-162276.31399355,0.00013688,2]
[334801248,1723590638581,-925.120686,9.899e-05,2]
[334801249,1723590638592,-623.86072154,9.999e-05,2]
[334801250,1723590638603,-301.25996446,9.999e-05,2]
[334801251,1723590638613,-200.0,0.00012542,2]
[334801252,1723590638622,-200.0,0.00012576,2]
[334801253,1723590638632,-200.0,0.0001261,2]
[334801254,1723590638646,-200.0,0.00012645,2]
[334801255,1723590638656,-64.758628,0.00012679,2]
[334801256,1723590638683,-135.241372,0.00012679,2]
[334801257,1723590638694,-200.0,0.00012713,2]
[334801258,1723590638706,-200.0,0.00012748,2]
[334801259,1723590638720,-200.0,0.00012782,2]
[334801260,1723590638733,-200.0,0.00012817,2]
[334801261,1723590638746,-200.0,0.00012851,2]
[334801262,1723590638758,-200.0,0.00012885,2]
[334801264,1723590638769,-200.0,0.0001292,2]
[334801267,1723590638781,-200.0,0.00012954,2]
[334801268,1723590638791,-500.0,0.00012986,2]
[334801270,1723590638802,-200.0,0.00012989,2]
[334801271,1723590638813,-153.0,0.00013,2]
[334801273,1723590638823,-207.3665351,0.00013,2]
[334801274,1723590638834,-200.0,0.00013023,2]
[334801275,1723590638843,-200.0,0.00013057,2]
[334801276,1723590638853,-153.0,0.00013078,2]
[334801277,1723590638863,-207.3665351,0.00013078,2]
[334801278,1723590638873,-200.0,0.00013092,2]
[334801279,1723590638882,-200.0,0.00013126,2]
[334801280,1723590638891,-200.0,0.0001316,2]
[334801281,1723590638901,-153.0,0.00013178,2]
[334801282,1723590638912,-200.0,0.00013195,2]
[334801283,1723590638921,-58.41273706,0.00013269,2]
[334801284,1723590640662,-5264.9922928,0.00013269,2]
[334801285,1723590640671,-153.0,0.00013378,2]
[334801286,1723590640682,-472.06090732,0.0001348,2]
[334801287,1723590640691,-1038.03045851,0.00013588,2]
[334801288,1723590640701,-243.66006148,0.0001359,2]
[334801289,1723590640712,-243.66006146,0.00013592,2]
[334801290,1723590640726,-243.66006146,0.00013594,2]
[334801291,1723590640736,-243.66006146,0.00013596,2]
[334801292,1723590640748,-1126.52582598,0.00013598,2]
[334801293,1723590640758,-243.66006146,0.00013598,2]
[334801294,1723590640767,-15324.09799345,0.00013598,2]
[334801295,1723590640780,-200.0,0.00013673,2]
[334801296,1723590640792,-200.0,0.00013673,2]
[334801297,1723590640802,-200.0,0.00013673,2]
[334801298,1723590640812,-200.0,0.00013673,2]
[334801299,1723590640822,-663.49562347,0.00013688,2]
[334801300,1723590640833,-1354.3800926,0.00013688,2]
[334801301,1723590640843,-1670.74719108,0.00013688,2]
[334801302,1723590640853,-1384.50193288,0.00013688,2]
[334801303,1723590640863,-510.06692442,0.00013688,2]
[334801304,1723590640874,-521.11959998,0.00013688,2]
[334801305,1723590640885,-134274.99484374,0.00013688,2]
[334801317,1723590643465,-925.120686,9.8e-05,2]
[334801318,1723590643477,-1100.73204531,0.00013688,2]
[334801319,1723590643650,-14363.56893213,0.00013688,2]
[334801330,1723590646638,-691.02362734,0.00010959,2]
[334801336,1723590646698,-124.97637266,0.00010959,2]
[334801338,1723590646709,-154.79103211,0.00012119,2]
[334801341,1723590646719,-27.01919084,0.00013688,2]
[334801387,1723591832555,-155.71872826,9.414e-05,2]
[334801388,1723591832566,-263.17440255,9.999e-05,2]
[334801496,1723591838691,-335.73768829,9.999e-05,2]
[334801498,1723591838701,-182.91834322,0.00012119,2]
[334801499,1723591838711,-500.0,0.00012986,2]
[334801500,1723591838722,-240.75942826,0.00012986,2]
[334801502,1723591838746,-259.24057174,0.00012986,2]
[334801503,1723591838756,-2487.36547224,0.00013169,2]
[334801542,1723591840815,-2836.03955762,0.00013169,2]
[334801543,1723591840824,-150.0,0.00013238,2]
[334801544,1723591840834,-153.0,0.000134,2]
[334801545,1723591840845,-590.79947348,0.00013587,2]
[334801546,1723591840861,-590.79947347,0.0001359,2]
[334801547,1723591840876,-590.79947347,0.00013592,2]
[334801548,1723591840886,-590.79947347,0.00013595,2]
[334801549,1723591840897,-1013.87324331,0.00013597,2]
[334801550,1723591840907,-590.79947347,0.00013597,2]
[334801551,1723591840918,-691.02362734,0.00013598,2]
[334801552,1723591840928,-414.3433333,0.000136,2]
[334801553,1723591840938,-153.0,0.000136,2]
[334801554,1723591840947,-153.0,0.000136,2]
[334801555,1723591840959,-155.1506605,0.000136,2]
[334801556,1723591840972,-200.0,0.00013673,2]
[334801557,1723591840983,-200.0,0.00013673,2]
[334801558,1723591840995,-200.0,0.00013673,2]
[334801559,1723591841005,-200.0,0.00013673,2]
[334801560,1723591841016,-200.0,0.00013673,2]
[334801561,1723591841026,-74780.3602945,0.00013677,2]
[334801562,1723591841036,-663.49562347,0.00013687,2]
[334801563,1723591841047,-56062.02250077,0.00013687,2]
[334801564,1723591841061,-778.77816215,0.00013687,2]
[334801579,1723591843841,-1246.72017249,0.00013687,2]
[334801629,1723591846671,-542.79084811,0.00013687,2]
[334801630,1723591846711,-2349.9999999,0.00013687,2]
[334801659,1723593031727,-154.79103211,9.999e-05,2]
[334801660,1723593031739,-319.12588046,9.999e-05,2]
[334801661,1723593031753,-412.72601555,0.0001,2]
[334801662,1723593031763,-407.98,0.00010959,2]
[334801663,1723593031774,-500.0,0.00012986,2]
[334801664,1723593031784,-199.32362365,0.00013331,2]
[334801717,1723593037925,-982.3872544,0.00013331,2]
[334801747,1723593039818,-4141.69415181,0.00013331,2]
[334801748,1723593039828,-465.35304536,0.00013446,2]
[334801749,1723593039839,-912.48591906,0.00013597,2]
[334801750,1723593039849,-51205.98500801,0.00013667,2]
[334801866,1723594231924,-177.9158266,9.999e-05,2]
[334801868,1723594231935,-500.0,0.00012986,2]
[334801870,1723594231945,-672.6341734,0.00013335,2]
[334801899,1723594238219,-4650.77085646,0.00013335,2]
[334801900,1723594238230,-28774.18884086,0.00013557,2]
[334801901,1723594238242,-912.48591906,0.00013576,2]
[334801902,1723594238252,-150.112233,0.000136,2]
[334801903,1723594238263,-150.112233,0.000136,2]
[334801904,1723594238274,-150.112233,0.000136,2]
[334801905,1723594238286,-150.112233,0.000136,2]
[334801906,1723594238298,-65830.35867732,0.00013665,2]
[334801913,1723594239919,-56725.51812424,0.00013665,2]
[334801946,1723594246059,-3333.1052624,0.00013476,2]
[334801948,1723594246069,-3571.70335577,0.00013665,2]
[334802034,1723595432098,-232.79918407,0.00012886,2]
[334802036,1723595432109,-66.70087317,0.00012986,2]
[334802059,1723595438379,-433.29912683,0.00012986,2]
[334802060,1723595438389,-5323.40502986,0.00013413,2]
[334802061,1723595438399,-465.35304536,0.00013413,2]
[334802062,1723595438409,-2916.4671046,0.00013546,2]
[334802063,1723595438418,-821.2373271,0.00013566,2]
[334802064,1723595438428,-2623.06394876,0.0001363,2]
[334802065,1723595438438,-20000.0,0.0001364,2]
[334802066,1723595438447,-14398.51784461,0.0001364,2]
[334802067,1723595438457,-85653.7130009,0.00013646,2]
[334802068,1723595438467,-85653.7130009,0.00013647,2]
[334802069,1723595438476,-3317.47811735,0.00013654,2]
[334802070,1723595438485,-151.0,0.00013654,2]
[334802071,1723595438497,-85653.7130009,0.00013654,2]
[334802072,1723595438507,-171307.426002,0.00013655,2]
[334802073,1723595438516,-151.0,0.00013655,2]
[334802074,1723595438526,-151.0,0.00013656,2]
[334802075,1723595438535,-163.849496,0.00013656,2]
[334802076,1723595438545,-151.0,0.00013656,2]
[334802077,1723595438555,-163.849496,0.00013656,2]
[334802078,1723595438564,-151.0,0.00013656,2]
[334802079,1723595438574,-151.0,0.00013656,2]
[334802080,1723595438583,-151.0,0.00013656,2]
[334802081,1723595438593,-151.0,0.00013656,2]
[334802082,1723595438602,-151.0,0.00013656,2]
[334802083,1723595438612,-151.0,0.00013656,2]
[334802084,1723595438621,-151.0,0.00013656,2]
[334802085,1723595438630,-205.966269,0.00013656,2]
[334802086,1723595438640,-151.0,0.00013656,2]
[334802087,1723595438650,-151.0,0.00013656,2]
[334802088,1723595438663,-183.897277,0.00013656,2]
[334802089,1723595438674,-183.897277,0.00013656,2]
[334802090,1723595438683,-183.897277,0.00013656,2]
[334802091,1723595438693,-183.897277,0.00013656,2]
[334802092,1723595438703,-183.897277,0.00013656,2]
[334802093,1723595438713,-183.897277,0.00013656,2]
[334802094,1723595438723,-183.897277,0.00013656,2]
[334802095,1723595438732,-183.897277,0.00013656,2]
[334802096,1723595438742,-183.897277,0.00013656,2]
[334802097,1723595438752,-183.897277,0.00013656,2]
[334802098,1723595438761,-163.149501,0.00013656,2]
[334802099,1723595438772,-163.149501,0.00013656,2]
[334802100,1723595438783,-163.149501,0.00013656,2]
[334802101,1723595438792,-163.149501,0.00013656,2]
[334802102,1723595438802,-163.149501,0.00013656,2]
[334802103,1723595438812,-163.149501,0.00013656,2]
[334802104,1723595438821,-163.149501,0.00013656,2]
[334802106,1723595438831,-163.149501,0.00013656,2]
[334802107,1723595438840,-163.149501,0.00013656,2]
[334802108,1723595438849,-163.149501,0.00013656,2]
[334802109,1723595438859,-163.149501,0.00013656,2]
[334802111,1723595438868,-163.149501,0.00013656,2]
[334802112,1723595438878,-151.0,0.00013656,2]
[334802114,1723595438887,-151.0,0.00013656,2]
[334802116,1723595438897,-151.0,0.00013656,2]
[334802117,1723595438906,-151.0,0.00013656,2]
[334802118,1723595438915,-232.017089,0.00013656,2]
[334802120,1723595438925,-618.00178,0.00013656,2]
[334802121,1723595438934,-618.00178,0.00013656,2]
[334802122,1723595438944,-963.252274,0.00013656,2]
[334802123,1723595438953,-963.252274,0.00013656,2]
[334802124,1723595438963,-618.00178,0.00013656,2]
[334802125,1723595438973,-618.00178,0.00013656,2]
[334802126,1723595438982,-963.252274,0.00013656,2]
[334802127,1723595438991,-963.252274,0.00013656,2]
[334802128,1723595439001,-2388.242044,0.00013656,2]
[334802129,1723595439010,-2388.242044,0.00013656,2]
[334802130,1723595439019,-2388.242044,0.00013656,2]
[334802131,1723595439029,-2388.242044,0.00013656,2]
[334802132,1723595439038,-942.0588,0.00013656,2]
[334802133,1723595439047,-942.0588,0.00013656,2]
[334802134,1723595439057,-942.0588,0.00013656,2]
[334802135,1723595439067,-942.0588,0.00013656,2]
[334802136,1723595439076,-9807.1,0.00013656,2]
[334802137,1723595439086,-151.0,0.00013656,2]
[334802138,1723595439096,-151.0,0.00013656,2]
[334802139,1723595439106,-151.0,0.00013656,2]
[334802140,1723595439115,-151.0,0.00013656,2]
[334802141,1723595439125,-1415.199916,0.00013656,2]
[334802142,1723595439134,-1415.199916,0.00013656,2]
[334802143,1723595439144,-1415.199916,0.00013656,2]
[334802144,1723595439158,-1415.199916,0.00013656,2]
[334802145,1723595439168,-1921.929587,0.00013656,2]
[334802146,1723595439178,-1921.929587,0.00013656,2]
[334802147,1723595439188,-1921.929587,0.00013656,2]
[334802148,1723595439198,-1921.929587,0.00013656,2]
[334802149,1723595439212,-2412.387543,0.00013656,2]
[334802150,1723595439221,-2412.387543,0.00013656,2]
[334802151,1723595439232,-2412.387543,0.00013656,2]
[334802152,1723595439242,-2412.387543,0.00013656,2]
[334802153,1723595439251,-151.0,0.00013656,2]
[334802154,1723595439261,-151.0,0.00013656,2]
[334802155,1723595439271,-1257.347252,0.00013656,2]
[334802156,1723595439281,-1257.347252,0.00013656,2]
[334802157,1723595439291,-1257.347252,0.00013656,2]
[334802158,1723595439300,-1257.347252,0.00013656,2]
[334802159,1723595439310,-1157.010423,0.00013656,2]
[334802160,1723595439320,-1157.010423,0.00013656,2]
[334802161,1723595439330,-1157.010423,0.00013656,2]
[334802162,1723595439340,-1157.010423,0.00013656,2]
[334802163,1723595439350,-1157.010423,0.00013656,2]
[334802164,1723595439360,-1157.010423,0.00013656,2]
[334802165,1723595439370,-427.303646,0.00013656,2]
[334802166,1723595439379,-427.303646,0.00013656,2]
[334802167,1723595439389,-427.303646,0.00013656,2]
[334802168,1723595439398,-427.303646,0.00013656,2]
[334802169,1723595439408,-151.0,0.00013656,2]
[334802170,1723595439418,-151.0,0.00013656,2]
[334802171,1723595439428,-151.0,0.00013656,2]
[334802172,1723595439438,-151.0,0.00013656,2]
[334802173,1723595439447,-642.056633,0.00013656,2]
[334802174,1723595439457,-642.056633,0.00013656,2]
[334802175,1723595439467,-642.056633,0.00013656,2]
[334802176,1723595439476,-642.056633,0.00013656,2]
[334802177,1723595439485,-599.790146,0.00013656,2]
[334802178,1723595439497,-599.790146,0.00013656,2]
[334802179,1723595439506,-599.790146,0.00013656,2]
[334802180,1723595439516,-599.790146,0.00013656,2]
[334802181,1723595439526,-599.790146,0.00013656,2]
[334802182,1723595439536,-599.790146,0.00013656,2]
[334802183,1723595439546,-876.271347,0.00013656,2]
[334802184,1723595439556,-876.271347,0.00013656,2]
[334802185,1723595439565,-876.271347,0.00013656,2]
[334802186,1723595439575,-876.271347,0.00013656,2]
[334802187,1723595439584,-151.0,0.00013656,2]
[334802188,1723595439594,-151.0,0.00013656,2]
[334802189,1723595439604,-151.0,0.00013656,2]
[334802190,1723595439614,-151.0,0.00013656,2]
[334802191,1723595439623,-876.271347,0.00013656,2]
[334802192,1723595439632,-876.271347,0.00013656,2]
[334802193,1723595439641,-876.271347,0.00013656,2]
[334802194,1723595439652,-876.271347,0.00013656,2]
[334802195,1723595439663,-3127.522791,0.00013656,2]
[334802196,1723595439674,-3127.522791,0.00013656,2]
[334802197,1723595439685,-3127.522791,0.00013656,2]
[334802198,1723595439696,-3127.522791,0.00013656,2]
[334802199,1723595439707,-279.1604975,0.00013656,2]
[334802311,1723596638666,-2938.94371181,0.00012886,2]
[334802313,1723596638678,-254.63533274,0.00012886,2]
[334802321,1723596638779,-299.50005724,0.00012886,2]
[334802323,1723596638790,-500.0,0.00012986,2]
[334802325,1723596638801,-5323.40502986,0.00013292,2]
[334802327,1723596638813,-2551.90871649,0.00013544,2]
[334802329,1723596638823,-739.11359439,0.00013555,2]
[334802331,1723596638833,-150.112239,0.000136,2]
[334802333,1723596638844,-85653.7130009,0.00013643,2]
[334802336,1723596638854,-85653.7130009,0.00013644,2]
[334802338,1723596638863,-3317.47811735,0.00013645,2]
[334802340,1723596638874,-1257.347252,0.00013645,2]
[334802343,1723596638884,-1257.347252,0.00013645,2]
[334802345,1723596638895,-151.0,0.00013645,2]
[334802347,1723596638905,-151.0,0.00013645,2]
[334802350,1723596638916,-151.0,0.00013645,2]
[334802352,1723596638927,-2738.128397,0.00013645,2]
[334802354,1723596638937,-151.0,0.00013645,2]
[334802356,1723596638947,-2738.128397,0.00013645,2]
[334802358,1723596638957,-151.0,0.00013645,2]
[334802360,1723596638967,-151.0,0.00013645,2]
[334802362,1723596638978,-151.0,0.00013645,2]
[334802364,1723596638990,-151.0,0.00013645,2]
[334802365,1723596639001,-151.0,0.00013645,2]
[334802366,1723596639011,-232.017089,0.00013645,2]
[334802367,1723596639022,-163.849496,0.00013645,2]
[334802368,1723596639033,-163.849496,0.00013645,2]
[334802369,1723596639044,-163.849496,0.00013645,2]
[334802371,1723596639055,-163.849496,0.00013645,2]
[334802373,1723596639066,-2156.970474,0.00013645,2]
[334802374,1723596639076,-2156.970474,0.00013645,2]
[334802375,1723596639087,-1262.959216,0.00013645,2]
[334802376,1723596639099,-1262.959216,0.00013645,2]
[334802377,1723596639110,-9807.1,0.00013645,2]
[334802378,1723596639121,-4577.925139,0.00013645,2]
[334802379,1723596639132,-4577.925139,0.00013645,2]
[334802380,1723596639141,-205.966269,0.00013645,2]
[334802382,1723596639153,-206.547277,0.00013645,2]
[334802384,1723596639163,-151.0,0.00013645,2]
[334802386,1723596639172,-206.547277,0.00013645,2]
[334802388,1723596639183,-151.0,0.00013645,2]
[334802389,1723596639193,-151.0,0.00013645,2]
[334802390,1723596639203,-151.0,0.00013645,2]
[334802392,1723596639214,-256961.139003,0.00013645,2]
[334802394,1723596639225,-929.121347,0.00013646,2]
[334802396,1723596639236,-929.121347,0.00013646,2]
[334802398,1723596639247,-2388.242044,0.00013646,2]
[334802400,1723596639257,-2388.242044,0.00013646,2]
[334802401,1723596639266,-642.056633,0.00013646,2]
[334802402,1723596639276,-1415.199916,0.00013646,2]
[334802403,1723596639287,-642.056633,0.00013646,2]
[334802404,1723596639297,-1415.199916,0.00013646,2]
[334802405,1723596639310,-243.989904,0.00013646,2]
[334802406,1723596639320,-644.764228,0.00013646,2]
[334802407,1723596639331,-243.989904,0.00013646,2]
[334802408,1723596639340,-644.764228,0.00013646,2]
[334802409,1723596639351,-151.0,0.00013646,2]
[334802410,1723596639363,-9807.1,0.00013646,2]
[334802411,1723596639373,-9807.1,0.00013646,2]
[334802412,1723596639383,-151.0,0.00013646,2]
[334802413,1723596639392,-151.0,0.00013646,2]
[334802414,1723596639402,-427.303646,0.00013646,2]
[334802415,1723596639412,-980.071182,0.00013646,2]
[334802416,1723596639422,-427.303646,0.00013646,2]
[334802417,1723596639435,-980.071182,0.00013646,2]
[334802418,1723596639445,-151.0,0.00013646,2]
[334802419,1723596639456,-151.0,0.00013646,2]
[334802420,1723596639468,-151.0,0.00013646,2]
[334802421,1723596639479,-151.0,0.00013646,2]
[334802422,1723596639499,-942.0588,0.00013646,2]
[334802423,1723596639513,-942.0588,0.00013646,2]
[334802424,1723596639527,-330.0,0.0001365,2]
[334802425,1723596639539,-151.0,0.00013653,2]
[334802426,1723596639550,-163.849496,0.00013653,2]
[334802427,1723596639561,-163.849496,0.00013653,2]
[334802428,1723596639573,-1262.959216,0.00013653,2]
[334802429,1723596639585,-1262.959216,0.00013653,2]
[334802430,1723596639597,-151.0,0.00013653,2]
[334802431,1723596639608,-9807.1,0.00013653,2]
[334802432,1723596639619,-9807.1,0.00013653,2]
[334802433,1723596639631,-151.0,0.00013653,2]
[334802434,1723596639641,-185.837213,0.00013653,2]
[334802435,1723596639654,-427.303646,0.00013653,2]
[334802436,1723596639665,-427.303646,0.00013653,2]
[334802437,1723596639677,-151.0,0.00013653,2]
[334802438,1723596639687,-151.0,0.00013653,2]
[334802439,1723596639698,-151.0,0.00013653,2]
[334802440,1723596639709,-151.0,0.00013653,2]
[334802441,1723596639719,-942.0588,0.00013653,2]
[334802442,1723596639729,-942.0588,0.00013653,2]
[334802443,1723596639742,-4577.925139,0.00013653,2]
[334802444,1723596639751,-4577.925139,0.00013653,2]
[334802445,1723596639761,-206.547277,0.00013653,2]
[334802446,1723596639771,-151.0,0.00013653,2]
[334802447,1723596639782,-206.547277,0.00013653,2]
[334802448,1723596639795,-151.0,0.00013653,2]
[334802449,1723596639805,-151.0,0.00013653,2]
[334802450,1723596639815,-231.651917,0.00013653,2]
[334802451,1723596639826,-929.121347,0.00013654,2]
[334802452,1723596639836,-929.121347,0.00013654,2]
[334802453,1723596639848,-2388.242044,0.00013654,2]
[334802454,1723596639859,-2388.242044,0.00013654,2]
[334802455,1723596639869,-642.056633,0.00013654,2]
[334802456,1723596639879,-1415.199916,0.00013654,2]
[334802457,1723596639890,-642.056633,0.00013654,2]
[334802458,1723596639899,-1415.199916,0.00013654,2]
[334802459,1723596639910,-243.989904,0.00013654,2]
[334802460,1723596639921,-644.764228,0.00013654,2]
[334802461,1723596639933,-243.989904,0.00013654,2]
[334802462,1723596639944,-644.764228,0.00013654,2]
[334802463,1723596639955,-151.0,0.00013654,2]
[334802464,1723596639967,-3928.65836579,0.00013654,2]
[334802503,1723596643453,-606.78,0.00013654,2]
[334802609,1723597832458,-500.0,0.00012986,2]
[334802610,1723597832468,-617.52520655,0.00013419,2]
[334802649,1723597838638,-472.3372967,0.0001338,2]
[334802650,1723597838647,-2094.5613363,0.00013419,2]
[334802651,1723597838722,-720.84043094,0.00013419,2]
[334802652,1723597838734,-1890.47805607,0.00013419,2]
[334802653,1723597838745,-2692.30846675,0.00013543,2]
[334802654,1723597838754,-188.33848169,0.00013544,2]
[334802655,1723597838763,-300.0,0.00013599,2]
[334802656,1723597838772,-336.59268156,0.000136,2]
[334802657,1723597838783,-596.0,0.000136,2]
[334802658,1723597838792,-150.112233,0.000136,2]
[334802659,1723597838802,-3904.64806558,0.00013634,2]
[334802660,1723597838814,-7362.41044772,0.00013634,2]
[334802661,1723597838836,-73872.7224156,0.00013634,2]
[334802662,1723597838847,-85139.7809289,0.00013643,2]
[334802663,1723597838857,-9781.81,0.00013643,2]
[334802664,1723597838870,-9781.81,0.00013643,2]
[334802665,1723597838884,-9781.81,0.00013643,2]
[334802666,1723597838895,-9781.81,0.00013643,2]
[334802667,1723597838906,-9781.81,0.00013643,2]
[334802668,1723597838917,-3317.47811735,0.00013644,2]
[334802669,1723597838930,-255419.342787,0.00013644,2]
[334802670,1723597838942,-8813.03878739,0.00013644,2]
[334802682,1723597840620,-512.37431689,0.00013644,2]
[334802683,1723597840648,-456.39689572,0.00013644,2]
[334802684,1723597840658,-17.85483696,0.00013644,2]
[334802685,1723597840669,-598.0205773,0.00013644,2]
[334802690,1723597843745,-9148.0556141,0.00013644,2]
[334802720,1723597846850,-17.87897164,0.00013644,2]
[334802721,1723597846860,-713.71115555,0.00013644,2]
[334802722,1723597846929,-9068.09884445,0.00013644,2]
[334802723,1723597846939,-9781.81,0.00013644,2]
[334802724,1723597846948,-151.0,0.00013645,2]
[334802725,1723597846958,-193.269272,0.00013645,2]
[334802726,1723597846967,-193.269272,0.00013645,2]
[334802727,1723597846976,-300.801285,0.00013645,2]
[334802728,1723597846986,-300.801285,0.00013645,2]
[334802729,1723597846995,-151.0,0.00013645,2]
[334802730,1723597847008,-983.630623,0.00013645,2]
[334802731,1723597847017,-305.130024,0.00013645,2]
[334802732,1723597847026,-305.130024,0.00013645,2]
[334802733,1723597847036,-151.0,0.00013645,2]
[334802734,1723597847045,-3827.331136,0.00013645,2]
[334802735,1723597847054,-3827.331136,0.00013645,2]
[334802736,1723597847063,-223.625317,0.00013645,2]
[334802737,1723597847073,-223.625317,0.00013645,2]
[334802738,1723597847082,-151.0,0.00013645,2]
[334802739,1723597847091,-151.0,0.00013645,2]
[334802740,1723597847101,-151.0,0.00013645,2]
[334802741,1723597847110,-151.0,0.00013645,2]
[334802742,1723597847120,-151.0,0.00013645,2]
[334802743,1723597847129,-1203.176303,0.00013645,2]
[334802744,1723597847138,-1203.176303,0.00013645,2]
[334802745,1723597847147,-875.01211,0.00013645,2]
[334802746,1723597847156,-9781.81,0.00013652,2]
[334802747,1723597847165,-151.0,0.00013652,2]
[334802748,1723597847174,-151.0,0.00013652,2]
[334802749,1723597847183,-151.0,0.00013653,2]
[334802750,1723597847193,-193.269272,0.00013653,2]
[334802751,1723597847202,-193.269272,0.00013653,2]
[334802752,1723597847212,-9781.81,0.00013653,2]
[334802753,1723597847221,-9781.81,0.00013653,2]
[334802754,1723597847230,-9781.81,0.00013653,2]
[334802755,1723597847239,-9781.81,0.00013653,2]
[334802756,1723597847249,-151.0,0.00013654,2]
[334802757,1723597847259,-151.0,0.00013654,2]
[334802758,1723597847268,-1413.68526537,0.00013654,2]
[334802759,1723597847278,-1384.50193288,0.00013654,2]
[334802760,1723597847287,-8300.89257038,0.00013654,2]
[334802761,1723597847296,-510.06692442,0.00013654,2]
[334802762,1723597847306,-3852.75061317,0.00013654,2]
[334802763,1723597847314,-218.37288986,0.00013654,2]
[334802764,1723597847324,-37021.0,0.00013654,2]
[334802765,1723597847333,-5029.92097977,0.00013654,2]
[334802766,1723597847343,-1670.74719108,0.00013654,2]
[334802767,1723597847351,-193.269272,0.00013654,2]
[334802768,1723597847362,-193.269272,0.00013654,2]
[334802769,1723597847371,-193.269272,0.00013654,2]
[334802770,1723597847381,-193.269272,0.00013654,2]
[334802771,1723597847390,-1603.92185992,0.00013654,2]
[334802772,1723597847399,-163.149501,0.00013654,2]
[334802773,1723597847408,-163.149501,0.00013654,2]
[334802774,1723597847417,-262.954262,0.00013654,2]